Cogmind - Beta 13 @@@ ROGUE MODE // 2024.03.31 @ 19:12:21 Player: zygorg Result: Destroyed by Y-45 Defender with Beam Rifle Performance ------------- Evolutions (2) 1000 Regions Visited (5) 1000 Robots Destroyed (94) 470 Value Destroyed (2860) 2860 Prototype IDs (3) 60 Alien Tech Used (0) 0 Bonus (304) 304 TOTAL SCORE: 5694 Bonus ------- High Alert Combat Kills 304 Cogmind --------- Core Integrity 0/550 Matter 83/300 Energy 99/100 System Corruption 0% Temperature Cool (18) Movement Core (50) Location -8/Storage Parts ------- > --- POWER (2) -------- (None) > --- PROPULSION (2) --- (None) > --- UTILITY (4) ------ (None) > --- WEAPON (3) ------- (None) > --- INVENTORY (5) ---- Wheel Terrain Scanner Peak State ------------ > --- POWER ------------ Deuterium Engine Light Nuclear Core > --- PROPULSION ------- Wheel Wheel > --- UTILITY ---------- Improved Heat Sink Improved Sensor Array Heavy Armor Plating > --- WEAPON ----------- Heavy EM Shotgun Beam Rifle Improved Grenade Launcher > --- INVENTORY -------- Terrain Scanner Heavy Armor Plating Particle Gun Particle Cannon [Rating: 30] Favorites ----------- Power Improved Ion Engine Engine Improved Ion Engine Power Core Light Nuclear Core Propulsion Light Treads Treads Light Treads Leg Aluminum Leg Wheel Wheel Flight Unit Flight Unit Utility Improved Heat Sink Device Improved Heat Sink Storage Large Matter Pod Processor Signal Interpreter Protection Heavy Armor Plating Weapon Ion Cannon Energy Gun Beam Rifle Energy Cannon Ion Cannon Ballistic Gun Heavy Assault Rifle Ballistic Cannon Improved Light Cannon Launcher Improved Grenade Launcher Build | -11 -10 -10 -9 -8 -8 ------- Run | Yrd Mat Min Mat Mat Sto Slots Evolved 4 | . . . 2 2 . Power 1 | . . . 1 . . Propulsion . | . . . . . . Utility 2 | . . . 1 1 . Weapon 1 | . . . . 1 . Parts Attached 79 | 5 12 . 18 41 3 Power 8 | 1 1 . 2 4 . Engine 7 | 1 1 . 2 3 . Core 1 | . . . . 1 . Reactor . | . . . . . . Propulsion 18 | 2 1 . 6 7 2 Treads 8 | . . . 2 4 2 Leg 3 | 2 1 . . . . Wheel 5 | . . . 2 3 . Hover . | . . . . . . Flight 2 | . . . 2 . . Utility 20 | . 5 . 5 9 1 Device 11 | . 3 . 2 6 . Storage 3 | . 2 . 1 . . Processor 1 | . . . 1 . . Hackware . | . . . . . . Protection 5 | . . . 1 3 1 Artifact . | . . . . . . Weapon 33 | 2 5 . 5 21 . Energy Gun 13 | 2 2 . 2 7 . Energy Cannon 10 | . 3 . 1 6 . Ballistic Gun 5 | . . . 1 4 . Ballistic Cannon 1 | . . . 1 . . Launcher 4 | . . . . 4 . Special Weapon . | . . . . . . Impact Weapon . | . . . . . . Slashing Weapon . | . . . . . . Piercing Weapon . | . . . . . . Special Melee Weapon . | . . . . . . Unidentified Prototypes 1 | . . . . 1 . Parts Lost 29 | . . . 8 9 12 Power 4 | . . . . 2 2 Propulsion 8 | . . . 3 2 3 Utility 11 | . . . 4 3 4 Weapon 6 | . . . 1 2 3 Highest Loss Streak 9 | . . . 4 4 9 To Critical Strikes 1 | . . . 1 . . Average Slot Usage (%) 92 | . 95 100 90 94 47 Engine 15 | . 14 14 22 14 3 Core 1 | . . . . 2 2 Treads 7 | . . . 5 12 8 Leg 8 | . 28 28 3 . . Wheel 3 | . . . 7 4 7 Device 21 | . 17 28 21 23 10 Storage 1 | . 6 . 2 . . Processor 3 | . . . 1 5 . Protection 2 | . . . 3 3 4 Energy Gun 11 | . 11 14 10 12 . Energy Cannon 12 | . 16 14 9 11 . Ballistic Gun 1 | . . . 1 1 7 Naked Turns 6 | . . . . . 6 Heaviest Build 43 | 6 19 16 26 43 35 Greatest Support 56 | 20 20 20 40 40 56 Greatest Overweight (x) 7 | . . . 7 3 1 Average Overweight (x) . | . . . . . . Largest Inventory Capacity 25 | 5 25 5 5 5 5 Average Capacity 5 | 5 5 5 5 5 5 Most Carried 5 | 2 5 2 4 5 5 Average Carried 3 | . 2 2 1 3 3 Final Capacity 5 | 5 5 5 5 5 5 Final Carried 5 | 2 2 2 3 5 2 Class Distribution -------------------- 43% | Mutant 26% | Scavenger-Tank 21% | Scavenger-Skirmisher 8% | Scavenger-Mutant Dominant Class ---------------- Mutant | -10/Materials Mutant | -10/Mines Mutant | -9/Materials Scavenger-Tank | -8/Materials Mutant | -8/Storage Resources | -11 -10 -10 -9 -8 -8 ----------- Run | Yrd Mat Min Mat Mat Sto Matter Collected 1123 | 250 238 . 200 435 . Remotely . | . . . . . . Salvage Created 3304 | 40 412 95 860 1897 . Parts 190 | 2 23 4 55 106 . Haulers Intercepted 3 | . 1 . . 2 . Recyclers Shooed 2 | . 1 . . 1 . Parts Field Recycled . | . . . . . . Retrieved Matter . | . . . . . . Parts Self-Destructed . | . . . . . . Prevented . | . . . . . . Kills | -11 -10 -10 -9 -8 -8 ------- Run | Yrd Mat Min Mat Mat Sto Combat Hostiles Destroyed 72 | 1 6 2 22 41 . Guns 19 | 1 2 1 10 5 . Cannons 35 | . 3 1 12 19 . AOE 14 | . 1 . . 13 . Classes Destroyed 14 | 1 3 . 4 6 . Worker 4 | . . . 1 3 . Builder 1 | . . . . 1 . Tunneler 1 | . . . . 1 . Hauler 3 | . 1 . . 2 . Recycler 1 | . . . . 1 . Operator 2 | . 1 . . 1 . Watcher 10 | . 3 . 2 5 . Swarmer 17 | . . . 7 10 . Grunt 38 | 1 6 2 9 20 . Brawler 2 | . . . 1 1 . Duelist 1 | . . . . 1 . Protector 1 | . . . . 1 . Sentry 12 | . . . 5 7 . Hunter 1 | . . . . 1 . Best Kill Streak 10 | 1 2 2 6 10 . Combat Bots Only 9 | 1 1 2 5 9 . Max Kills in Single Turn 3 | 1 1 1 2 3 . Gunslinging . | . . . . . . Exploded 3 | . 1 . . 3 . Melee . | . . . . . . Uniques/NPCs Destroyed . | . . . . . . Combat | -11 -10 -10 -9 -8 -8 -------- Run | Yrd Mat Min Mat Mat Sto Hostile Shots Fired 444 | 8 33 5 103 171 124 Missed 129 | 2 17 . 22 49 39 Damage Taken 4481 | 67 233 70 1003 1744 1364 Core 914 | 12 58 13 268 231 332 Absorbed by Shields 190 | . . . . 190 . Regen/Repaired (Parts) 61 | . . . . 61 . Core Remaining (%) 64 | 95 . 66 33 . . Volleys Fired 212 | 6 26 3 64 101 12 Largest 3 | 2 2 2 2 3 2 Hottest 189 | 90 121 106 116 189 46 Shots Fired 460 | 12 52 6 127 243 20 Gun 221 | 12 15 3 69 102 20 Cannon 227 | . 37 3 58 129 . Launcher 12 | . . . . 12 . Special . | . . . . . . Kinetic 30 | . . . 4 6 20 Thermal 335 | 12 15 3 104 201 . Explosive 12 | . . . . 12 . Electromagnetic 83 | . 37 3 19 24 . Robot Hit Streak 13 | 6 7 9 13 13 12 Robot Miss Streak 6 | 3 1 . 6 6 3 Penetration Max . | . . . . . . Secondary Targets . | . . . . . . Shots Hit Robots 294 | 7 36 5 80 152 14 Core Hits 138 | 2 15 3 36 81 1 Critical Kills 2 | . . . . 2 . Critical Parts Destroyed 1 | . . . . 1 . Critical Strikes 15 | . 1 2 6 6 . Burn 11 | . . 2 6 3 . Meltdown 2 | . . . . 2 . Destroy 1 | . . . . 1 . Corrupt 1 | . 1 . . . . Melee Attacks . | . . . . . . Impact . | . . . . . . Slashing . | . . . . . . Piercing . | . . . . . . Sneak Attacks . | . . . . . . Combat Hostiles . | . . . . . . Follow-up Attacks . | . . . . . . Damage Inflicted 6535 | 85 673 86 1291 4188 212 Guns 2166 | 85 132 38 583 1116 212 Cannons 2969 | . 399 48 708 1814 . Explosions 1387 | . 129 . . 1258 . Melee . | . . . . . . Ramming 13 | . 13 . . . . Kinetic 293 | . . . 26 55 212 Thermal 3941 | 85 261 38 980 2577 . Explosive 1258 | . . . . 1258 . Electromagnetic 1030 | . 399 48 285 298 . Impact . | . . . . . . Slashing . | . . . . . . Piercing . | . . . . . . Highest Corruption 2 | . . . 2 . . Average Corruption 2 | . . . 2 . . Corruption Purged . | . . . . . . Corruption Blocked . | . . . . . . Effects 2 | . . . 2 . . Message Errors 1 | . . . 1 . . Data Loss (major) 1 | . . . 1 . . Overload Shots . | . . . . . . Overflow Damage 86 | . 37 . . 49 . Projectiles 29 | . 12 . . 17 . Explosions 57 | . 25 . . 32 . Melee . | . . . . . . Knockbacks 1 | . 1 . . . . Impact 1 | . 1 . . . . Kinetic . | . . . . . . Secondary . | . . . . . . Self-Inflicted Damage 266 | . . . . 266 . Shots 6 | . . . . 6 . Rammed . | . . . . . . Targets Rammed 2 | . 2 . . . . Kicked 2 | . 2 . . . . Crushed . | . . . . . . Highest Temperature 561 | 216 186 42 314 561 26 Average Temperature 123 | 109 50 29 86 160 9 Received Heat Transfer 2060 | 36 147 60 408 716 693 Effects 20 | . . . 1 19 . Shutdowns 5 | . . . . 5 . Energy Bleed 3 | . . . . 3 . Interference 9 | . . . 1 8 . Matter Decay 2 | . . . . 2 . Short Circuit 1 | . . . . 1 . Siege Activations . | . . . . . . Robots Corrupted . | . . . . . . Combat Hostiles . | . . . . . . Parts Fried 4 | . . . 2 2 . Impact Corruptions . | . . . . . . Robots Melted 4 | . . . . 4 . Combat Hostiles 4 | . . . . 4 . Parts Melted 27 | 1 . 1 14 11 . Heat Transferred 8920 | 223 483 259 2849 5106 . Parts Sabotaged . | . . . . . . Parts Stolen . | . . . . . . Parts Stripped . | . . . . . . Power Chain Reactions 2 | . 2 . . . . Alert | -11 -10 -10 -9 -8 -8 ------- Run | Yrd Mat Min Mat Mat Sto Peak Influence 978 | 20 183 67 375 978 447 Initial 412 | . 13 2 26 157 412 Average 251 | 2 42 10 203 385 390 Maximum Alert Level 3 | . . . 1 3 2 Low Security (%) 41 | 100 100 100 40 10 . Level 1 42 | . . . 59 59 57 Level 2 13 | . . . . 23 42 Level 3 2 | . . . . 5 . Level 4 . | . . . . . . Level 5 . | . . . . . . High Security . | . . . . . . Max Security . | . . . . . . Squads Dispatched 7 | . . . 1 5 1 Investigation 3 | . . . 1 2 . Extermination . | . . . . . . Reinforcement 2 | . . . . 1 1 Assault 2 | . . . . 2 . Garrison . | . . . . . . Intercept . | . . . . . . Searches Triggered . | . . . . . . Construction Impeded . | . . . . . . Haulers Reinforced . | . . . . . . Active Scanning Responses . | . . . . . . Cargo Convoy Interrupts . | . . . . . . Stealth | -11 -10 -10 -9 -8 -8 --------- Run | Yrd Mat Min Mat Mat Sto Distress Signals 7 | . . . 1 4 2 Communications Jammed . | . . . . . . Distress Signals . | . . . . . . Times Spotted 107 | 1 15 2 28 52 9 Peak Tracking Total 8 | 1 4 2 4 6 8 Tactical Retreats 3 | . 1 . 1 1 . Traps | -11 -10 -10 -9 -8 -8 ------- Run | Yrd Mat Min Mat Mat Sto Traps Triggered 1 | . . . . 1 . Indirectly . | . . . . . . Trap Hack Attempts . | . . . . . . Triggered . | . . . . . . Disarmed 10 | . . . . 10 . Reprogrammed . | . . . . . . Reused . | . . . . . . Traps Extracted . | . . . . . . Installed . | . . . . . . Triggered . | . . . . . . Machines | -11 -10 -10 -9 -8 -8 ---------- Run | Yrd Mat Min Mat Mat Sto Machines Disabled 6 | . . 1 . 5 . Max in Single Turn 2 | . . 1 . 2 . Machines Repaired . | . . . . . . Machines Dismantled . | . . . . . . Machines Sabotaged . | . . . . . . Overloaded Fab Kills . | . . . . . . Hacking | -11 -10 -10 -9 -8 -8 --------- Run | Yrd Mat Min Mat Mat Sto Machines Accessed 21 | . 6 1 2 11 1 Terminals 16 | . 5 1 1 8 1 Fabricators . | . . . . . . Repair Stations 3 | . . . 1 2 . Recycling Units 2 | . 1 . . 1 . Scanalyzers . | . . . . . . Garrison Access . | . . . . . . Total Hacks 65 | . 14 3 7 39 2 Successful 38 | . 7 2 2 26 1 Failed 27 | . 7 1 5 13 1 Catastrophic 2 | . . . . 2 . Database Lockouts . | . . . . . . Manual . | . . . . . . Terminals 53 | . 11 3 4 33 2 Fabricators . | . . . . . . Repair Stations 8 | . . . 3 5 . Recycling Units 4 | . 3 . . 1 . Scanalyzers . | . . . . . . Garrison Access . | . . . . . . Terminal Hacks 30 | . 5 2 1 21 1 Record 9 | . . . . 9 . Robot Analysis 1 | . . . . 1 . Prototype ID Bank 1 | . . . . 1 . Emergency Access Points 1 | . 1 . . . . Alert Level 2 | . . . . 2 . Locate Traps 3 | . 1 . 1 1 . Disarm Traps 3 | . . . . 3 . Dispatch Records 3 | . 2 1 . . . Transport Status 1 | . . . . 1 . Recall Reinforcements 1 | . . . . 1 . Hauler Manifests 2 | . . . . 2 . Zone Layout 3 | . 1 1 . . 1 Fabricator Hacks . | . . . . . . Repair Station Hacks 5 | . . . 1 4 . Scan Component 2 | . . . . 2 . Repair 1 | . . . . 1 . Refit 2 | . . . 1 1 . Recycling Unit Hacks 3 | . 2 . . 1 . Process 1 | . . . . 1 . Report Inventory 1 | . 1 . . . . Retrieve Components 1 | . 1 . . . . Scanalyzer . | . . . . . . Garrison Access Hacks . | . . . . . . Unauthorized Hacks . | . . . . . . Terminals . | . . . . . . Fabricators . | . . . . . . Repair Stations . | . . . . . . Recycling Units . | . . . . . . Scanalyzers . | . . . . . . Garrison Access . | . . . . . . Data Cores Recovered 2 | . 1 . . 1 . Used . | . . . . . . Hacking Detections 17 | . 5 1 2 8 1 Full Trace Events 4 | . . . 1 3 . Feedback Events . | . . . . . . Feedback Blocked . | . . . . . . Robot Schematics Acquired . | . . . . . . Robots Built . | . . . . . . Authchips . | . . . . . . Time . | . . . . . . Total Robot Build Rating . | . . . . . . Part Schematics Acquired . | . . . . . . Parts Built . | . . . . . . Authchips . | . . . . . . Time . | . . . . . . Total Part Build Rating . | . . . . . . Parts Repaired 1 | . . . . 1 . Time 38 | . . . . 38 . Parts Recycled . | . . . . . . Recycled Matter 130 | . . . . 130 . Retrieved Matter . | . . . . . . Retrieved Components 9 | . 9 . . . . Parts Scanalyzed . | . . . . . . Part Schematics Acquired . | . . . . . . Parts Damaged . | . . . . . . Bothacking | -11 -10 -10 -9 -8 -8 ------------ Run | Yrd Mat Min Mat Mat Sto Used RIF Installer . | . . . . . . Robots Hacked . | . . . . . . Non-combat . | . . . . . . Combat . | . . . . . . Robot Hacks Applied . | . . . . . . Relay Couplers Released . | . . . . . . Fabnet Peak Effective % . | . . . . . . Robots Rewired . | . . . . . . Allies Hacked . | . . . . . . Hacks Repelled . | . . . . . . Allies | -11 -10 -10 -9 -8 -8 -------- Run | Yrd Mat Min Mat Mat Sto Total Allies . | . . . . . . Largest Group . | . . . . . . Highest-Rated Group . | . . . . . . Highest-Rated Ally . | . . . . . . Total Orders . | . . . . . . Ally Attacks . | . . . . . . Total Damage . | . . . . . . Kills . | . . . . . . Allies Corrupted . | . . . . . . Allies Melted . | . . . . . . Intel | -11 -10 -10 -9 -8 -8 ------- Run | Yrd Mat Min Mat Mat Sto Robot Analysis Total 1 | . . . . 1 . Derelict Logs Recovered 1 | . . 1 . . . Drone Launches . | . . . . . . Drone Recoveries . | . . . . . . Exploration | -11 -10 -10 -9 -8 -8 ------------- Run | Yrd Mat Min Mat Mat Sto Turns Passed 4201 | 98 904 233 718 2099 149 Spaces Moved 2346 | 74 600 187 353 1047 85 Core 41 | 28 . . 2 . 11 Treads 774 | . . . 72 664 38 Legs 866 | 46 600 187 33 . . Wheels 659 | . . . 240 383 36 Hover . | . . . . . . Flight 6 | . . . 6 . . Fastest Speed 50 | 50 120 120 90 95 50 Average Speed 132 | 93 120 120 130 146 118 Slowest Speed 440 | 120 120 120 440 240 160 Overloaded Moves . | . . . . . . Propulsion Burnouts . | . . . . . . Robots Hopped . | . . . . . . Cave-ins Triggered . | . . . . . . Exploration Rate (%) 36 | 6 68 28 25 70 19 Regions Visited 5 Branch Regions 2 Pre-discovered Areas . | . . . . . . Known Exits Taken 1 | . . . 1 . . Unknown Exits Taken 4 | 1 1 1 . 1 . Scrap Searched . | . . . . . . Spaces Dug . | . . . . . . Terrain Destroyed 173 | . 8 . 1 164 . Melee . | . . . . . . Projectile 13 | . . . 1 12 . AOE 160 | . 8 . . 152 . Terrain Rammed . | . . . . . . Walls Destroyed . | . . . . . . Machines Disabled . | . . . . . . Actions | -11 -10 -10 -9 -8 -8 --------- Run | Yrd Mat Min Mat Mat Sto Total 3030 | 91 733 189 484 1420 113 Wait 250 | . 67 . 20 150 13 Move 2341 | 73 599 186 352 1046 85 Hop . | . . . . . . Pick Up 88 | 7 14 . 20 47 . Fast Attach . | . . . . . . Attach 34 | 5 3 . 11 13 2 Detach 1 | . 1 . . . . Swap 45 | . 9 . 7 28 1 Drop 57 | . 12 . 10 35 . Fire 212 | 6 26 3 64 101 12 Melee . | . . . . . . Ram . | . . . . . . Kick 2 | . 2 . . . . Crush . | . . . . . . Escape Stasis . | . . . . . . Rewire . | . . . . . . Trap . | . . . . . . Miscellaneous . | . . . . . . Route ------- -11/Scrapyard -10/Materials -10/Mines -9/Materials -8/Materials -8/Storage History --------- Turn | Location | Event 2 | -11/Scrapyard | Met Revision 17 64 | -11/Scrapyard | Discovered new exit (range 8) 99 | -11/Scrapyard | Entered Materials 309 | -10/Materials | Build established: Mutant 939 | -10/Materials | Discovered new exit (range 15) 1003 | -10/Materials | Entered Mines 1045 | -10/Mines | A weapon hastily lodged in a ceiling crevice suddenly fell to the ground 1191 | -10/Mines | Learned Materials security intel 1199 | -10/Mines | Discovered new exit (range 9) 1219 | -10/Mines | Assembled infested the area 1236 | -10/Mines | Entered Materials 1236 | -9/Materials | Evolved 2 slots: Power x1, Utility x1 1409 | -9/Materials | Lost 4 parts (2n1u1w) 1730 | -9/Materials | Core integrity fell below 50% 1853 | -9/Materials | Discovered new exit (range 15) 1952 | -9/Materials | Identified exit to Materials 1954 | -9/Materials | Entered another Materials area 1954 | -8/Materials | Evolved 2 slots: Utility x1, Weapon x1 2267 | -8/Materials | Build established: Scavenger-Tank 2933 | -8/Materials | Build established: Scavenger-Skirmisher 3273 | -8/Materials | Lost 4 parts (1n2u1w) 3469 | -8/Materials | Lost 3 parts (1n1u1w) 3818 | -8/Materials | Build established: Scavenger-Tank 3954 | -8/Materials | First assault squad dispatched 4005 | -8/Materials | Discovered new exit (range 10) 4006 | -8/Materials | Repaired Deuterium Engine? 4043 | -8/Materials | Destroyed 9 combat bots 4053 | -8/Materials | Entered Storage 4117 | -8/Storage | Core integrity fell below 50% 4173 | -8/Storage | Lost 9 parts (2p1n3u3w) 4188 | -8/Storage | Core integrity fell below 20% 4202 | -8/Storage | Destroyed by Y-45 Defender with Beam Rifle Last Messages --------------- 04105_ ALERT: Hostiles spotted, dispatching reinforcements to Terminal S003. 04107_ Wheel destroyed. 04107_ Hvy. Armor Plating destroyed. 04110_ Hvy. Assault Rifle destroyed. 04116_ Backup Power I destroyed. 04118_ Imp. Sensor Array destroyed. 04119_ Hvy. Assault Rifle destroyed. 04119_ Imp. Grenade Launcher destroyed. 04123_ M-13 Machinist repairs Y-45 Defender. 04125_ M-13 Machinist repairs Hvy. Assault Rifle. 04128_ Critical hit (Burn: +37). 04142_ Hvy. Armor Plating destroyed. 04173_ Critical hit (Burn: +37). 04176_ W-25 Informer sends out distress signal. 04177_ Imp. Heat Sink destroyed. 04177_ Critical hit (Burn: +37). 04191_ Med. Treads destroyed. [Achievement: First Step to Greatness] [Achievement: 5k Club] Map ----- +----------------------------------------------------+ | | | | | | | | | | | | | ???????????????????????????????###???????????????? | | ?????????????????????????????? ???????????????? | | ??????????????????????????????""" "??????????????? | | ############################# """ ""?????????????? | | # """ """ #??????????? | | Y/ #?????????? | | # #??????????? | | ##### #####+###########g #?? #??????????? | | ????# #??# #??# #???? ! #??????????? | | ????# #??# """ """ #??# #??????####??????????? | | ????# #??# """ """ #??# #????????????????????? | | ????# #??# """ """ #??# #????????????????????? | | ????# #??# #??# #????????????????????? | | ????# #??# ! #??# #????????????????????? | | ##### #??# #??# #????????????????????? | | ## #??# #??# #????????????????????? | | ## ########+######## #????????????????????? | | # # + #????????????????????? | | # # T # #????????????????????? | | + T # # @ #????????????????????? | | # # + #????????????????????? | | # ############# #????????????????????? | | ## ###########??#r #????????????????????? | | ## # #??# #????????????????????? | | ##### # """""" #??#m #????????????????????? | | # # " " #### #????????????????????? | | # # " " + Y#????????????????????? | | / / """""" ####k# ????????????????????? | | # # #??# # ????????????????????? | | # # #??# # Y ????????????????????? | | + # #??# # ???????????????????? | | # ###########??#?# #???????????????????? | | # #????????????#??######???????????????????? | | ##### ##############???????????????????????????? | | ##### # ##???????????????????????????? | | ?????????????????????????????????????????????????? | | ?????????????????????????????????????????????????? | | ?????????????????????????????????????????????????? | | ?????????????????????????????????????????????????? | | ?????????????????????????????????????????????????? | | ?????????????????????????????????????????????????? | | ?????????????????????????????????????????????????? | | ?????????????????????????????????????????????????? | | ?????????????????????????????????????????????????? | +----------------------------------------------------+ Best States ------------- Heat Dissipation 64 Energy Generation 23 Energy Capacity 450 Matter Stores 450 Matter Capacity 450 Sight Range 16 Robot Scan Range 15 Terrain Scan Range 14 Terrain Scan Density 10 ECM Strength 1 Armor Coverage 600 Evasion (%) 55 Recoil Reduction 2 Item Schematics ----------------- None Robot Schematics ------------------ None Fabricated ------------ Nothing Alien Tech Used ----------------- None Achievements -------------- 5k Club Crack Shot First Step to Greatness It's Just You Loot Pinata One Hack Too Far Part-time Mechanic Risk Taker Shopping List Significant Disruption Storm Trooper Uninvited Guest Challenges ------------ None Game ------ Seed UltimateHeartEdition Manual? 0 Play Time 01:40:01 Cumulative 1.6 hours Start 2024.03.31 @ 17:19:05 End 2024.03.31 @ 19:12:21 Sessions 3 Manual Loads 0 Difficulty Rogue Special Mode None Game No. 1 Rogue 1 Adventurer 0 Explorer 0 Win Type - Total 0 Types 0/0/0/0/0/0/0/0/0 Lore% 1 Gallery% 4 Achievement% 4 Wizard Run 0 Options --------- Layout 0 ASCII 0 Keyboard 0 Movement Arrows Keybinds 0 Fullscreen 2 Font 18/SmallcapsGlow Map View 76x50 Zoom Use 24% Tactical HUD 1 Map Filters NONE Filters NONE Steam 0 RUN: 57a563b7-0dde-4bca-80e1-5695b6bf0b04